[Event "Blixt-SM 2021"]
[Site "Elite Hotel Marina Plaza, Kungstorget 6, Helsingborg, Sweden"]
[Date "2021.11.14"]
[Round "12.2"]
[White "Wellevit, Tomas"]
[Black "Olsson, Linus"]
[Result "0-1"]
[TimeControl "3 minutes + 2 seconds per move."]
[BlackTitle "FM"]
[WhiteFideId "1731963"]
[BlackFideId "1706098"]
[WhiteElo "2113"]
[BlackElo "2204"]

1. e4 {[%clk 00:03:04]} {[%emt 00:02:15]} c5 {[%clk 00:03:03]} {[%emt
00:00:01]} 2. Nf3 {[%clk 00:03:05]} {[%emt 00:00:01]} d6 {[%clk 00:03:04]} 3.
d4 {[%clk 00:03:06]} cxd4 {[%clk 00:03:05]} {[%emt 00:00:02]} 4. c3 {[%clk
00:03:07]} d3 {[%clk 00:03:05]} {[%emt 00:00:02]} 5. Bxd3 {[%clk 00:03:08]} Nf6
{[%clk 00:03:06]} {[%emt 00:00:01]} 6. Bg5 {[%clk 00:03:08]} {[%emt 00:00:02]}
e6 {[%clk 00:03:06]} {[%emt 00:00:02]} 7. Qd2 {[%clk 00:03:09]} Be7 {[%clk
00:03:06]} {[%emt 00:00:02]} 8. Na3 {[%clk 00:03:10]} {[%emt 00:00:01]} O-O
{[%clk 00:03:02]} {[%emt 00:00:06]} 9. h4 {[%clk 00:03:11]} a6 {[%clk
00:03:02]} {[%emt 00:00:03]} 10. Nc2 {[%clk 00:03:11]} {[%emt 00:00:01]} b5
{[%clk 00:03:00]} {[%emt 00:00:04]} 11. O-O-O {[%clk 00:02:58]} {[%emt
00:00:15]} Nbd7 {[%clk 00:02:47]} {[%emt 00:00:15]} 12. Qe3 {[%clk 00:02:34]}
{[%emt 00:00:26]} Nc5 {[%clk 00:02:38]} {[%emt 00:00:11]} 13. e5 {[%clk
00:02:35]} {[%emt 00:00:02]} Nd5 {[%clk 00:02:22]} {[%emt 00:00:17]} 14. Qd4
{[%clk 00:02:26]} {[%emt 00:00:11]} Nxd3+ {[%clk 00:02:01]} {[%emt 00:00:24]}
15. Rxd3 {[%clk 00:02:21]} {[%emt 00:00:07]} Bb7 {[%clk 00:01:54]} {[%emt
00:00:09]} 16. Qg4 {[%clk 00:02:07]} {[%emt 00:00:16]} Kh8 {[%clk 00:01:35]}
{[%emt 00:00:21]} 17. exd6 {[%clk 00:02:02]} {[%emt 00:00:07]} Qxd6 {[%clk
00:01:34]} {[%emt 00:00:04]} 18. h5 {[%clk 00:01:57]} {[%emt 00:00:06]} Bxg5+
{[%clk 00:01:31]} {[%emt 00:00:05]} 19. Qxg5 {[%clk 00:01:45]} {[%emt
00:00:14]} h6 {[%clk 00:01:25]} {[%emt 00:00:08]} 20. Qd2 {[%clk 00:01:40]}
{[%emt 00:00:07]} Rac8 {[%clk 00:01:04]} {[%emt 00:00:24]} 21. Kb1 {[%clk
00:01:39]} {[%emt 00:00:03]} Rfd8 {[%clk 00:00:54]} {[%emt 00:00:11]} 22. Rd1
{[%clk 00:01:37]} {[%emt 00:00:04]} a5 {[%clk 00:00:46]} {[%emt 00:00:11]} 23.
g4 {[%clk 00:01:33]} {[%emt 00:00:05]} Qe7 {[%clk 00:00:25]} {[%emt 00:00:23]}
24. g5 {[%clk 00:01:31]} {[%emt 00:00:05]} hxg5 {[%clk 00:00:23]} {[%emt
00:00:04]} 25. Nxg5 {[%clk 00:01:26]} {[%emt 00:00:06]} Qf6 {[%clk 00:00:19]}
{[%emt 00:00:07]} 26. h6 {[%clk 00:01:22]} {[%emt 00:00:06]} gxh6 {[%clk
00:00:18]} {[%emt 00:00:03]} 27. Ne4 {[%clk 00:01:23]} {[%emt 00:00:01]} Qg7
{[%clk 00:00:12]} {[%emt 00:00:08]} 28. Rh1 {[%clk 00:01:16]} {[%emt 00:00:09]}
Kh7 {[%clk 00:00:11]} {[%emt 00:00:03]} 29. Qe2 {[%clk 00:01:07]} {[%emt
00:00:10]} Nf4 {[%clk 00:00:11]} {[%emt 00:00:02]} 30. Rxd8 {[%clk 00:00:55]}
{[%emt 00:00:14]} Nxe2 {[%clk 00:00:12]} 31. Rxc8 {[%clk 00:00:54]} {[%emt
00:00:04]} Bxc8 {[%clk 00:00:13]} {[%emt 00:00:01]} 32. Ne3 {[%clk 00:00:48]}
{[%emt 00:00:09]} Bb7 {[%clk 00:00:14]} {[%emt 00:00:01]} 33. Rh4 {[%clk
00:00:37]} {[%emt 00:00:12]} Qg6 {[%clk 00:00:09]} {[%emt 00:00:06]} 34. f3
{[%clk 00:00:37]} {[%emt 00:00:02]} Qg1+ {[%clk 00:00:10]} {[%emt 00:00:02]} 35.
Kc2 {[%emt 00:00:02]} Qxe3 {[%clk 00:00:09]} {[%emt 00:00:02]} 36. Nf6+ {[%clk
00:00:34]} {[%emt 00:00:05]} Kg7 {[%clk 00:00:10]} 37. Rxh6 {[%clk 00:00:21]}
{[%emt 00:00:15]} Bxf3 {[%clk 00:00:10]} {[%emt 00:00:02]} 38. Rh3 {[%clk
00:00:15]} {[%emt 00:00:09]} Kxf6 {[%clk 00:00:10]} {[%emt 00:00:02]} 0-1

[Event "Blixt-SM 2021"]
[Site "Elite Hotel Marina Plaza, Kungstorget 6, Helsingborg, Sweden"]
[Date "2021.11.14"]
[Round "13.9"]
[White "Nilsson, Patrik"]
[Black "Strom-Engdahl, Alexander"]
[Result "0-1"]
[TimeControl "3 minutes + 2 seconds per move."]
[WhiteFideId "1708171"]
[BlackFideId "1741586"]
[WhiteElo "2143"]
[BlackElo "1783"]

1. d4 {[%clk 00:03:02]} {[%emt 00:00:02]} Nf6 {[%clk 00:03:03]} {[%emt
00:00:02]} 2. Bf4 {[%clk 00:03:03]} e6 {[%clk 00:03:03]} {[%emt 00:00:01]} 3.
e3 {[%clk 00:03:02]} {[%emt 00:00:03]} b6 {[%clk 00:03:05]} {[%emt 00:00:01]} 4.
Qf3 {[%clk 00:03:01]} {[%emt 00:00:03]} c6 {[%clk 00:02:57]} {[%emt 00:00:09]}
5. Nc3 {[%clk 00:02:57]} {[%emt 00:00:05]} Bb4 {[%clk 00:02:52]} {[%emt
00:00:07]} 6. Bd3 {[%clk 00:02:51]} {[%emt 00:00:08]} d5 {[%clk 00:02:33]}
{[%emt 00:00:22]} 7. Nge2 {[%clk 00:02:47]} {[%emt 00:00:06]} Nbd7 {[%clk
00:02:29]} {[%emt 00:00:05]} 8. a3 {[%clk 00:02:43]} {[%emt 00:00:06]} Be7
{[%clk 00:02:27]} {[%emt 00:00:03]} 9. e4 {[%clk 00:02:37]} {[%emt 00:00:08]}
dxe4 {[%clk 00:02:16]} {[%emt 00:00:14]} 10. Nxe4 {[%clk 00:02:38]} {[%emt
00:00:01]} Bb7 {[%clk 00:02:12]} {[%emt 00:00:06]} 11. Nd6+ {[%clk 00:02:37]}
{[%emt 00:00:02]} Bxd6 {[%clk 00:02:10]} {[%emt 00:00:04]} 12. Bxd6 {[%clk
00:02:38]} {[%emt 00:00:01]} Qc8 {[%clk 00:02:09]} {[%emt 00:00:02]} 13. Qg3
{[%clk 00:02:24]} {[%emt 00:00:17]} Rg8 {[%clk 00:02:05]} {[%emt 00:00:06]} 14.
O-O {[%clk 00:02:12]} {[%emt 00:00:14]} c5 {[%clk 00:01:57]} {[%emt 00:00:10]}
15. dxc5 {[%clk 00:01:59]} {[%emt 00:00:16]} Nxc5 {[%clk 00:01:56]} {[%emt
00:00:03]} 16. Bb5+ {[%clk 00:01:48]} {[%emt 00:00:13]} Bc6 {[%clk 00:01:56]}
{[%emt 00:00:01]} 17. Nd4 {[%clk 00:01:49]} Bd7 {[%clk 00:01:48]} {[%emt
00:00:10]} 18. Rfe1 {[%clk 00:01:45]} {[%emt 00:00:06]} Nce4 {[%clk 00:01:42]}
{[%emt 00:00:08]} 19. Qe5 {[%clk 00:01:29]} {[%emt 00:00:17]} Nxd6 {[%clk
00:01:36]} {[%emt 00:00:08]} 20. Qxd6 {[%clk 00:01:30]} {[%emt 00:00:02]} Qb8
{[%clk 00:01:34]} {[%emt 00:00:04]} 21. Rxe6+ {[%clk 00:01:14]} {[%emt
00:00:18]} fxe6 {[%clk 00:01:32]} {[%emt 00:00:04]} 22. Qxe6+ {[%clk 00:01:14]}
{[%emt 00:00:01]} Kf8 {[%clk 00:01:16]} {[%emt 00:00:18]} 23. Bxd7 {[%clk
00:01:14]} {[%emt 00:00:03]} Qd8 {[%clk 00:00:46]} {[%emt 00:00:32]} 24. Bc6
{[%clk 00:01:07]} {[%emt 00:00:09]} Rc8 {[%clk 00:00:33]} {[%emt 00:00:15]} 25.
Re1 {[%clk 00:00:55]} {[%emt 00:00:14]} Rc7 {[%clk 00:00:28]} {[%emt 00:00:07]}
26. Qc4 {[%clk 00:00:50]} {[%emt 00:00:06]} Re7 {[%clk 00:00:20]} {[%emt
00:00:10]} 27. Ne6+ {[%clk 00:00:50]} {[%emt 00:00:02]} Rxe6 {[%clk 00:00:20]}
{[%emt 00:00:01]} 28. Qxe6 {[%clk 00:00:51]} {[%emt 00:00:01]} g6 {[%clk
00:00:18]} {[%emt 00:00:05]} 29. h3 {[%clk 00:00:42]} {[%emt 00:00:11]} Rg7
{[%clk 00:00:17]} {[%emt 00:00:02]} 30. Ba4 {[%clk 00:00:38]} {[%emt 00:00:06]}
Rc7 {[%clk 00:00:05]} {[%emt 00:00:15]} 31. c3 {[%clk 00:00:28]} {[%emt
00:00:12]} Qe7 {[%clk 00:00:06]} 32. Qxe7+ {[%clk 00:00:29]} {[%emt 00:00:02]}
Rxe7 33. Rxe7 Kxe7 {[%clk 00:00:09]} 34. Bc2 {[%clk 00:00:30]} {[%emt
00:00:01]} Nd5 {[%clk 00:00:09]} {[%emt 00:00:02]} 35. f3 {[%clk 00:00:27]}
{[%emt 00:00:05]} Nf4 {[%clk 00:00:10]} {[%emt 00:00:01]} 36. Kh2 {[%clk
00:00:22]} Kd6 {[%clk 00:00:10]} {[%emt 00:00:08]} 37. g3 {[%clk 00:00:23]} Nd5
{[%clk 00:00:11]} {[%emt 00:00:02]} 38. Kg1 {[%clk 00:00:22]} {[%emt 00:00:03]}
Ne3 {[%clk 00:00:10]} {[%emt 00:00:03]} 39. Bd3 {[%clk 00:00:23]} {[%emt
00:00:02]} Nd1 {[%clk 00:00:11]} 40. Kf1 {[%clk 00:00:10]} {[%emt 00:00:16]}
Nxb2 {[%clk 00:00:12]} {[%emt 00:00:01]} 41. Bb5 {[%clk 00:00:11]} Nd1 {[%clk
00:00:11]} {[%emt 00:00:02]} 42. c4 {[%clk 00:00:11]} {[%emt 00:00:03]} Ne3+
{[%clk 00:00:07]} {[%emt 00:00:06]} 43. Ke2 {[%clk 00:00:12]} Nf5 {[%clk
00:00:08]} {[%emt 00:00:02]} 44. g4 {[%clk 00:00:12]} Nd4+ {[%clk 00:00:08]}
{[%emt 00:00:03]} 45. Kd3 {[%clk 00:00:13]} Kc5 {[%clk 00:00:10]} 46. a4 {[%clk
00:00:12]} {[%emt 00:00:03]} Ne6 {[%clk 00:00:09]} {[%emt 00:00:02]} 47. Ke4
{[%clk 00:00:12]} {[%emt 00:00:02]} Ng5+ {[%clk 00:00:11]} 48. Ke5 {[%clk
00:00:13]} {[%emt 00:00:02]} Nxh3 {[%clk 00:00:12]} 49. f4 {[%clk 00:00:14]}
Nf2 {[%clk 00:00:12]} 50. g5 {[%clk 00:00:11]} {[%emt 00:00:08]} Ng4 {[%clk
00:00:12]} 51. Ke6 {[%clk 00:00:11]} {[%emt 00:00:02]} Kd4 {[%clk 00:00:09]}
{[%emt 00:00:05]} 52. f5 {[%clk 00:00:12]} {[%emt 00:00:01]} gxf5 {[%clk
00:00:09]} {[%emt 00:00:02]} 53. Kxf5 {[%clk 00:00:12]} Ne3+ {[%clk 00:00:10]}
54. Kf6 {[%clk 00:00:13]} {[%emt 00:00:01]} Ke4 {[%clk 00:00:08]} {[%emt
00:00:04]} 55. Kg7 {[%clk 00:00:14]} {[%emt 00:00:02]} Kf5 {[%clk 00:00:09]} 56.
Kxh7 {[%clk 00:00:14]} {[%emt 00:00:01]} Kxg5 {[%clk 00:00:10]} 57. Kg7 {[%clk
00:00:15]} Kf5 {[%clk 00:00:11]} {[%emt 00:00:02]} 58. Kf7 {[%clk 00:00:16]}
Ke5 {[%clk 00:00:12]} {[%emt 00:00:02]} 59. Ke7 {[%clk 00:00:17]} Kd4 {[%clk
00:00:13]} 60. Kd6 {[%clk 00:00:16]} {[%emt 00:00:04]} Nxc4+ {[%clk 00:00:13]}
{[%emt 00:00:02]} 61. Kc7 {[%clk 00:00:17]} Na3 {[%clk 00:00:07]} {[%emt
00:00:08]} 62. Be8 {[%clk 00:00:14]} {[%emt 00:00:04]} Kc5 {[%emt 00:00:04]} 63.
Kb7 {[%clk 00:00:15]} a5 {[%clk 00:00:06]} {[%emt 00:00:02]} 64. Ka6 {[%clk
00:00:14]} {[%emt 00:00:03]} Nc2 {[%clk 00:00:06]} {[%emt 00:00:02]} 65. Kb7
{[%clk 00:00:14]} {[%emt 00:00:02]} Nd4 {[%clk 00:00:06]} {[%emt 00:00:02]} 66.
Ka6 {[%clk 00:00:14]} {[%emt 00:00:02]} Ne6 {[%clk 00:00:05]} {[%emt 00:00:02]}
67. Kb7 {[%clk 00:00:13]} {[%emt 00:00:03]} Nd8+ {[%clk 00:00:06]} {[%emt
00:00:02]} 68. Kc7 {[%clk 00:00:13]} {[%emt 00:00:02]} Ne6+ {[%clk 00:00:06]}
{[%emt 00:00:03]} 69. Kd7 {[%clk 00:00:13]} {[%emt 00:00:01]} Nd4 {[%clk
00:00:04]} {[%emt 00:00:04]} 70. Kc7 {[%clk 00:00:14]} {[%emt 00:00:01]} Nc2
{[%clk 00:00:04]} {[%emt 00:00:02]} 71. Bd7 {[%clk 00:00:13]} {[%emt 00:00:02]}
Kb4 {[%clk 00:00:03]} {[%emt 00:00:03]} 72. Kxb6 {[%clk 00:00:13]} {[%emt
00:00:02]} Nd4 {[%clk 00:00:04]} 73. Ka6 {[%clk 00:00:11]} {[%emt 00:00:03]}
Ne2 {[%clk 00:00:06]} {[%emt 00:00:02]} 74. Kb6 {[%clk 00:00:12]} {[%emt
00:00:01]} Nc3 {[%clk 00:00:07]} 75. Kc6 {[%clk 00:00:05]} {[%emt 00:00:09]}
Nxa4 {[%clk 00:00:07]} {[%emt 00:00:02]} 76. Kd5 Nb6+ {[%emt 00:00:01]} 77. Kd4
{[%clk 00:00:06]} {[%emt 00:00:01]} Nxd7 {[%clk 00:00:10]} 78. Kd3 {[%clk
00:00:07]} Kb3 {[%clk 00:00:11]} 79. Kd4 {[%emt 00:00:05]} 0-1

[Event "Blixt-SM 2021"]
[Site "Elite Hotel Marina Plaza, Kungstorget 6, Helsingborg, Sweden"]
[Date "2021.11.14"]
[Round "1.5"]
[White "Buzleta, Patrik"]
[Black "Olsson, Linus"]
[Result "0-1"]
[TimeControl "3 minutes + 2 seconds per move."]
[BlackTitle "FM"]
[WhiteFideId "1755463"]
[BlackFideId "1706098"]
[WhiteElo "1752"]
[BlackElo "2204"]

1. Nf3 {[%clk 00:03:02]} {[%emt 00:00:01]} g6 {[%clk 00:02:59]} {[%emt
00:00:06]} 2. Nc3 {[%clk 00:03:03]} d5 {[%clk 00:02:49]} {[%emt 00:00:11]} 3.
e3 {[%clk 00:03:04]} {[%emt 00:00:01]} Nf6 {[%clk 00:02:48]} {[%emt 00:00:04]}
4. h3 {[%clk 00:03:04]} {[%emt 00:00:02]} Bg7 {[%clk 00:02:47]} {[%emt
00:00:02]} 5. b3 {[%clk 00:03:03]} {[%emt 00:00:03]} O-O {[%clk 00:02:46]}
{[%emt 00:00:03]} 6. Bb2 {[%clk 00:03:04]} {[%emt 00:00:01]} c5 {[%clk
00:02:45]} {[%emt 00:00:03]} 7. Qc1 {[%clk 00:03:04]} {[%emt 00:00:02]} Nc6
{[%clk 00:02:43]} {[%emt 00:00:04]} 8. a3 {[%clk 00:03:02]} {[%emt 00:00:04]}
d4 {[%clk 00:02:39]} {[%emt 00:00:05]} 9. Ne2 {[%clk 00:03:03]} {[%emt
00:00:01]} e5 {[%clk 00:02:34]} {[%emt 00:00:08]} 10. g3 {[%clk 00:02:57]}
{[%emt 00:00:08]} Be6 {[%clk 00:02:13]} {[%emt 00:00:22]} 11. Bg2 {[%clk
00:02:57]} {[%emt 00:00:02]} h6 {[%clk 00:02:06]} {[%emt 00:00:10]} 12. c4
{[%clk 00:02:42]} {[%emt 00:00:17]} Qd7 {[%clk 00:02:01]} {[%emt 00:00:07]} 13.
Qb1 {[%clk 00:02:18]} {[%emt 00:00:25]} Rab8 {[%clk 00:01:55]} {[%emt
00:00:09]} 14. Qc1 {[%clk 00:01:43]} {[%emt 00:00:37]} Rfe8 {[%clk 00:01:52]}
{[%emt 00:00:05]} 15. g4 {[%clk 00:01:32]} {[%emt 00:00:13]} e4 {[%clk
00:01:33]} {[%emt 00:00:21]} 16. Nh2 {[%clk 00:01:12]} {[%emt 00:00:22]} b5
{[%clk 00:01:26]} {[%emt 00:00:08]} 17. Nf4 {[%clk 00:00:57]} {[%emt 00:00:17]}
bxc4 {[%clk 00:01:21]} {[%emt 00:00:07]} 18. bxc4 {[%clk 00:00:50]} {[%emt
00:00:09]} Ne5 {[%clk 00:01:17]} {[%emt 00:00:07]} 19. Bf1 {[%clk 00:00:38]}
{[%emt 00:00:14]} Red8 {[%clk 00:00:30]} {[%emt 00:00:50]} 20. Rb1 {[%clk
00:00:38]} {[%emt 00:00:02]} Rb6 {[%clk 00:00:29]} {[%emt 00:00:03]} 21. Be2
{[%clk 00:00:32]} {[%emt 00:00:07]} Nc6 {[%clk 00:00:22]} {[%emt 00:00:08]} 22.
h4 {[%clk 00:00:27]} {[%emt 00:00:07]} Nxg4 {[%clk 00:00:20]} {[%emt 00:00:05]}
23. Nxe6 {[%clk 00:00:25]} {[%emt 00:00:04]} Nxh2 {[%clk 00:00:17]} {[%emt
00:00:05]} 24. Nxd8 {[%clk 00:00:19]} {[%emt 00:00:07]} Qxd8 {[%clk 00:00:16]}
{[%emt 00:00:04]} 25. Rxh2 {[%clk 00:00:20]} {[%emt 00:00:01]} d3 {[%clk
00:00:15]} {[%emt 00:00:03]} 26. Bf1 {[%clk 00:00:14]} {[%emt 00:00:07]} Bxb2
{[%clk 00:00:15]} {[%emt 00:00:03]} 27. Rxb2 {[%clk 00:00:15]} Ne5 {[%clk
00:00:15]} 28. Rxb6 {[%clk 00:00:16]} Nf3+ {[%clk 00:00:15]} {[%emt 00:00:02]}
29. Kd1 {[%clk 00:00:16]} {[%emt 00:00:02]} Qxb6 {[%clk 00:00:16]} {[%emt
00:00:02]} 30. Rg2 {[%clk 00:00:15]} {[%emt 00:00:03]} Qb3+ {[%clk 00:00:16]}
{[%emt 00:00:01]} 0-1

[Event "Blixt-SM 2021"]
[Site "Elite Hotel Marina Plaza, Kungstorget 6, Helsingborg, Sweden"]
[Date "2021.11.14"]
[Round "3.3"]
[White "Abedinov, Adnan"]
[Black "Rasti, Arvin"]
[Result "0-1"]
[TimeControl "3 minutes + 2 seconds per move."]
[WhiteFideId "1703544"]
[BlackFideId "1741160"]
[WhiteElo "2170"]
[BlackElo "2054"]

1. c4 {[%clk 00:03:02]} {[%emt 00:00:02]} Nf6 {[%clk 00:03:03]} {[%emt
00:00:01]} 2. Nc3 {[%clk 00:03:03]} {[%emt 00:00:01]} g6 {[%clk 00:03:03]}
{[%emt 00:00:02]} 3. e4 {[%clk 00:03:04]} d6 {[%clk 00:03:04]} 4. g3 {[%clk
00:03:05]} Bg7 {[%clk 00:03:06]} 5. Bg2 {[%clk 00:03:07]} O-O 6. Nge2 {[%emt
00:00:02]} c5 {[%clk 00:03:02]} {[%emt 00:00:07]} 7. O-O {[%clk 00:03:08]}
{[%emt 00:00:02]} Nc6 {[%clk 00:03:02]} {[%emt 00:00:02]} 8. d3 {[%clk
00:03:09]} {[%emt 00:00:02]} Ne8 {[%clk 00:03:03]} {[%emt 00:00:01]} 9. f4
{[%clk 00:03:08]} {[%emt 00:00:03]} Nc7 {[%clk 00:03:01]} {[%emt 00:00:05]} 10.
f5 {[%clk 00:02:55]} {[%emt 00:00:15]} a6 {[%clk 00:03:02]} 11. g4 {[%clk
00:02:55]} {[%emt 00:00:01]} Rb8 {[%clk 00:02:49]} {[%emt 00:00:15]} 12. Qe1
{[%clk 00:02:38]} {[%emt 00:00:19]} b5 {[%clk 00:02:41]} {[%emt 00:00:10]} 13.
Qh4 {[%clk 00:02:31]} {[%emt 00:00:08]} bxc4 {[%clk 00:02:15]} {[%emt
00:00:28]} 14. dxc4 {[%clk 00:02:32]} f6 {[%clk 00:02:03]} {[%emt 00:00:15]} 15.
g5 {[%clk 00:02:12]} {[%emt 00:00:22]} Ne5 {[%clk 00:02:01]} {[%emt 00:00:04]}
16. b3 {[%clk 00:01:55]} {[%emt 00:00:18]} Bd7 {[%clk 00:01:50]} {[%emt
00:00:13]} 17. Be3 {[%clk 00:01:46]} {[%emt 00:00:12]} Qc8 {[%clk 00:01:44]}
{[%emt 00:00:09]} 18. Bh3 {[%clk 00:01:22]} {[%emt 00:00:25]} Qb7 {[%clk
00:01:28]} {[%emt 00:00:19]} 19. Rad1 {[%clk 00:01:14]} {[%emt 00:00:09]} gxf5
{[%clk 00:01:21]} {[%emt 00:00:08]} 20. Nf4 {[%clk 00:00:40]} {[%emt 00:00:36]}
fxe4 {[%clk 00:01:12]} {[%emt 00:00:12]} 21. Bxd7 {[%clk 00:00:27]} {[%emt
00:00:16]} Nxd7 {[%clk 00:01:06]} {[%emt 00:00:07]} 22. g6 {[%clk 00:00:26]}
{[%emt 00:00:03]} hxg6 {[%clk 00:00:56]} {[%emt 00:00:13]} 23. Nxg6 {[%emt
00:00:06]} Rf7 24. Rf2 {[%clk 00:00:14]} {[%emt 00:00:10]} Nf8 {[%clk
00:00:45]} {[%emt 00:00:14]} 25. Rg2 {[%clk 00:00:14]} {[%emt 00:00:02]} Nce6
{[%clk 00:00:33]} {[%emt 00:00:14]} 26. Ne2 {[%clk 00:00:16]} Ng5 {[%clk
00:00:31]} {[%emt 00:00:04]} 27. Bxg5 {[%clk 00:00:14]} {[%emt 00:00:04]} Nxg6
{[%clk 00:00:32]} 28. Qh5 {[%clk 00:00:14]} {[%emt 00:00:02]} fxg5 {[%clk
00:00:29]} {[%emt 00:00:06]} 29. Qxg6 {[%clk 00:00:15]} {[%emt 00:00:01]} Rbf8
{[%clk 00:00:30]} 30. Rxg5 {[%clk 00:00:16]} {[%emt 00:00:02]} e3 {[%clk
00:00:27]} {[%emt 00:00:04]} 31. Nf4 {[%clk 00:00:16]} {[%emt 00:00:02]} Qf3
{[%clk 00:00:26]} {[%emt 00:00:03]} 32. Rf1 {[%clk 00:00:16]} {[%emt 00:00:02]}
Qxf1+ {[%clk 00:00:23]} {[%emt 00:00:05]} 33. Kxf1 {[%clk 00:00:17]} Rxf4+
{[%clk 00:00:25]} 34. Ke2 {[%clk 00:00:19]} R8f7 {[%clk 00:00:21]} {[%emt
00:00:05]} 35. Kxe3 {[%clk 00:00:18]} {[%emt 00:00:03]} Kf8 {[%clk 00:00:18]}
{[%emt 00:00:04]} 36. Rg3 {[%clk 00:00:18]} {[%emt 00:00:03]} Rf2 {[%clk
00:00:09]} {[%emt 00:00:11]} 37. Qe6 {[%clk 00:00:17]} {[%emt 00:00:03]} Bd4+
{[%clk 00:00:09]} {[%emt 00:00:02]} 38. Ke4 {[%clk 00:00:18]} {[%emt 00:00:01]}
Re2+ {[%clk 00:00:10]} 39. Kd5 {[%clk 00:00:19]} Rxe6 {[%clk 00:00:09]} {[%emt
00:00:03]} 40. Kxe6 {[%clk 00:00:20]} {[%emt 00:00:02]} Ke8 {[%clk 00:00:10]}
41. Rg8+ {[%clk 00:00:21]} Rf8 {[%clk 00:00:12]} 42. Rg2 {[%clk 00:00:21]} Rf6+
{[%emt 00:00:01]} 43. Kd5 Kd7 {[%clk 00:00:14]} 44. Rg5 {[%clk 00:00:19]}
{[%emt 00:00:06]} Rf4 {[%emt 00:00:08]} 0-1

[Event "Blixt-SM 2021"]
[Site "Elite Hotel Marina Plaza, Kungstorget 6, Helsingborg, Sweden"]
[Date "2021.11.14"]
[Round "5.1"]
[White "Jepson, Christian"]
[Black "Nilsson, Patrik"]
[Result "1-0"]
[TimeControl "3 minutes + 2 seconds per move."]
[WhiteTitle "IM"]
[WhiteFideId "1701185"]
[BlackFideId "1708171"]
[WhiteElo "2412"]
[BlackElo "2143"]

1. Nf3 {[%clk 00:03:03]} f5 {[%clk 00:03:03]} {[%emt 00:00:02]} 2. g3 {[%clk
00:03:04]} Nf6 {[%clk 00:03:04]} {[%emt 00:00:02]} 3. Bg2 {[%clk 00:03:05]} g6
{[%clk 00:03:05]} {[%emt 00:00:02]} 4. O-O {[%clk 00:03:03]} {[%emt 00:00:04]}
Bg7 {[%clk 00:03:06]} {[%emt 00:00:01]} 5. b4 {[%clk 00:03:01]} {[%emt
00:00:03]} d6 {[%clk 00:02:57]} {[%emt 00:00:11]} 6. d4 {[%clk 00:03:02]}
{[%emt 00:00:01]} O-O {[%clk 00:02:46]} {[%emt 00:00:12]} 7. Bb2 {[%clk
00:03:00]} {[%emt 00:00:04]} e5 {[%clk 00:02:41]} {[%emt 00:00:07]} 8. dxe5
{[%clk 00:02:58]} {[%emt 00:00:05]} Ng4 {[%clk 00:02:42]} 9. h3 {[%clk
00:02:34]} {[%emt 00:00:26]} Nxe5 {[%clk 00:02:42]} {[%emt 00:00:02]} 10. Qd5+
{[%clk 00:02:25]} {[%emt 00:00:11]} Kh8 {[%clk 00:02:28]} {[%emt 00:00:15]} 11.
Nxe5 {[%clk 00:02:23]} {[%emt 00:00:04]} Qe7 {[%clk 00:01:38]} {[%emt
00:00:52]} 12. Nd3 {[%clk 00:02:16]} {[%emt 00:00:09]} Bxb2 {[%clk 00:01:24]}
{[%emt 00:00:17]} 13. Nxb2 {[%clk 00:02:16]} {[%emt 00:00:02]} Qxe2 {[%clk
00:01:19]} {[%emt 00:00:06]} 14. Nc3 {[%clk 00:02:05]} {[%emt 00:00:14]} Qxc2
{[%clk 00:01:18]} {[%emt 00:00:03]} 15. Qd4+ {[%clk 00:02:04]} {[%emt
00:00:03]} Kg8 {[%clk 00:01:17]} {[%emt 00:00:03]} 16. Bd5+ {[%clk 00:02:04]}
{[%emt 00:00:02]} 1-0